fUSD/lending_fUSD_20240702
["ID","MTS","AMOUNT","RATE_DAILY","PERIOD"]
[330913375,1719939045713,-246.70512534,0.00018759,2]
[330913376,1719939045722,-182.1172596,0.00019069,2]
[330913377,1719939045735,-2981.16294976,0.00019451,2]
[330913378,1719939045747,-3219.0,0.00019451,2]
[330913379,1719939045759,-5795.19038756,0.00019451,2]
[330913380,1719939045781,-1470.7035555,0.00019451,2]
[330913381,1719939045792,-4194.7130299,0.00019451,2]
[330913382,1719939045805,-5234.8,0.00019451,2]
[330913383,1719939045820,-424.35038744,0.00019451,2]
[330913384,1719939045831,-724.52419805,0.00019451,2]
[330913385,1719939045844,-8328.27221717,0.00019451,2]
[330913386,1719939045855,-1042.51679166,0.00019451,2]
[330913387,1719939045867,-2207.1800953,0.00019451,2]
[330913388,1719939046000,-48441.8204643,0.00019451,2]
[330913389,1719939046011,-300.0,0.00019458,2]
[330913390,1719939046022,-186.41360317,0.0001946,2]
[330913391,1719939046032,-153.66295656,0.00019468,2]
[330913392,1719939046042,-152.77270294,0.00019469,2]
[330913393,1719939046053,-186.41360317,0.00019595,2]
[330913394,1719939046062,-300.0,0.00019637,2]
[330913395,1719939046072,-315.50160687,0.00019694,2]
[330913396,1719939046083,-300.0,0.00019816,2]
[330913397,1719939046092,-152.52853177,0.00019891,2]
[330913398,1719939046102,-1599.14836293,0.00019893,2]
[330913399,1719939046111,-14500.0,0.000199,2]
[330913400,1719939046121,-954.79955593,0.0001996,2]
[330913401,1719939046131,-186.41360317,0.00019963,2]
[330913402,1719939046140,-519.86065789,0.00019964,2]
[330913403,1719939046150,-151.03,0.00019987,2]
[330913404,1719939046160,-9374.61196824,0.00019987,2]
[330913405,1719939046169,-888.65243698,0.0001999,2]
[330913406,1719939046182,-153.6992578,0.00019993,2]
[330913407,1719939046191,-302.6421922,0.00019995,2]
[330913408,1719939046201,-263298.91974093,0.00019997,2]
[330913416,1719939046486,-5831.41853647,0.00019997,2]
[330913497,1719940232834,-257.0683048,0.00013989,2]
[330913498,1719940232844,-257.12126259,0.00013999,2]
[330913499,1719940232853,-161.95,0.00014277,2]
[330913500,1719940232862,-101.68708135,0.00014393,2]
[330913501,1719940232873,-53.31291865,0.00014393,2]
[330913502,1719940232883,-622.47305594,0.00015,2]
[330913503,1719940232892,-83.29402563,0.00015,2]
[330913504,1719940232915,-856.26166783,0.00015,2]
[330913505,1719940233002,-723.61384336,0.00015,2]
[330913506,1719940233012,-500.0,0.00015592,2]
[330913507,1719940233021,-500.0,0.00015592,2]
[330913508,1719940233031,-500.0,0.00015592,2]
[330913509,1719940233041,-499.99,0.00016149,2]
[330913510,1719940233050,-150.99,0.00016149,2]
[330913511,1719940233059,-500.0,0.00017236,2]
[330913512,1719940233069,-500.0,0.00017236,2]
[330913513,1719940233078,-500.0,0.00017787,2]
[330913514,1719940233087,-6883.39,0.00017808,2]
[330913515,1719940233096,-5036.3201018,0.00017814,2]
[330913516,1719940233108,-18863.6798982,0.00017814,2]
[330913517,1719940233117,-308.84999487,0.00017829,2]
[330913518,1719940233127,-250.0,0.0001784,2]
[330913519,1719940233136,-171.44,0.00017841,2]
[330913520,1719940233145,-400.0,0.00017922,2]
[330913521,1719940233155,-166.71,0.00017941,2]
[330913522,1719940233165,-3968.79438035,0.00017999,2]
[330913523,1719940233174,-171.21,0.00018005,2]
[330913524,1719940233185,-22229.14967053,0.00018005,2]
[330913525,1719940233197,-790.15908962,0.00018005,2]
[330913526,1719940233255,-12834.72123985,0.00018005,2]
[330913527,1719940233266,-285.13,0.00018021,2]
[330913528,1719940233275,-157.46,0.00018052,2]
[330913529,1719940233284,-2493.91059926,0.00018081,2]
[330913530,1719940233294,-1226.89326089,0.00018081,2]
[330913531,1719940233306,-961.50741166,0.00018081,2]
[330913532,1719940233316,-250.0,0.00018118,2]
[330913533,1719940233325,-157.46,0.00018208,2]
[330913534,1719940233334,-500.0,0.00018332,2]
[330913535,1719940233343,-500.0,0.00018332,2]
[330913536,1719940233352,-600.0,0.00018347,2]
[330913537,1719940233361,-157.46,0.00018365,2]
[330913538,1719940233370,-182.24,0.00018368,2]
[330913539,1719940233379,-150.05280114,0.00018521,2]
[330913540,1719940233388,-157.46,0.00018522,2]
[330913541,1719940233397,-169.30618065,0.00018581,2]
[330913542,1719940233407,-157.46,0.00018679,2]
[330913543,1719940233416,-157.58773495,0.00018709,2]
[330913544,1719940233426,-212.43,0.00018779,2]
[330913545,1719940233435,-181.2277006,0.00018782,2]
[330913546,1719940233445,-258.42046517,0.00018835,2]
[330913547,1719940233458,-157.46,0.00018836,2]
[330913548,1719940233467,-190.82,0.00018849,30]
[330913549,1719940233480,-276.2772852,0.00018899,2]
[330913550,1719940233490,-460.92343831,0.00018919,2]
[330913551,1719940233500,-210.18261467,0.00018919,2]
[330913552,1719940233511,-173.80868065,0.00018919,2]
[330913553,1719940233521,-157.46,0.00018992,2]
[330913554,1719940233531,-171.44,0.0001903,2]
[330913555,1719940233540,-241.49560116,0.00019069,2]
[330913556,1719940233549,-227.09542874,0.00019069,2]
[330913557,1719940233558,-253.84779197,0.00019069,2]
[330913558,1719940233567,-152.74222845,0.00019092,2]
[330913559,1719940233576,-152.74222845,0.00019099,2]
[330913560,1719940233585,-155.11107821,0.00019111,2]
[330913561,1719940233595,-250.0,0.00019178,2]
[330913562,1719940233604,-154.27332676,0.00019189,2]
[330913563,1719940233613,-152.52853177,0.00019233,2]
[330913564,1719940233622,-152.52853177,0.00019291,2]
[330913565,1719940233631,-492.0294394,0.00019352,2]
[330913566,1719940233640,-150.0,0.00019375,2]
[330913567,1719940233649,-298.21669352,0.00019428,2]
[330913568,1719940233658,-500.0,0.00019428,2]
[330913569,1719940233668,-152.74222845,0.00019438,2]
[330913570,1719940233678,-888.86225489,0.00019451,2]
[330913571,1719940233687,-150.0,0.0001958,2]
[330913572,1719940233696,-384.20872226,0.00019617,2]
[330913573,1719940233705,-166.66666668,0.00019657,2]
[330913574,1719940233715,-153.67666763,0.00019675,2]
[330913575,1719940233724,-154.27332676,0.00019742,2]
[330913576,1719940233733,-154.27332676,0.00019846,2]
[330913577,1719940233742,-154.27332676,0.0001986,2]
[330913578,1719940233756,-298.3177,0.00019897,2]
[330913579,1719940233765,-852.16871075,0.00019897,2]
[330913580,1719940233775,-365.91164053,0.00019899,2]
[330913581,1719940233787,-516.05009967,0.00019899,2]
[330913582,1719940233798,-169.66466054,0.00019997,2]
[330913583,1719940233808,-23539.58545862,0.00019997,2]
[330913591,1719940237764,-255.96292369,0.00015957,2]
[330913592,1719940237777,-249.81707631,0.00015957,2]
[330913593,1719940237790,-49.95729835,0.00018221,2]
[330913595,1719940237803,-455.82270165,0.00018221,2]
[330913597,1719940237813,-3957.00299642,0.00019997,2]
[330913599,1719940237826,-8050.60591988,0.00019997,2]
[330913600,1719940237843,-767.85643028,0.00019997,2]
[330913601,1719940237917,-2071.90208379,0.00019997,2]
[330913602,1719940237930,-82168.50189542,0.00019997,2]
[330913603,1719940237943,-472.28947022,0.00019997,2]
[330913604,1719940237955,-622.21983407,0.00019997,2]
[330913605,1719940237968,-965.47893929,0.00019997,2]
[330913606,1719940237995,-703.20536157,0.00019997,2]
[330913607,1719940238008,-871.38553932,0.00019997,2]
[330913608,1719940238021,-13042.15733404,0.00019997,2]
[330913609,1719940238066,-3912.70000001,0.00019997,2]
[330913610,1719940238078,-836.87762474,0.00019997,2]
[330913611,1719940238090,-682.37328559,0.00019997,2]
[330913612,1719940238103,-461.61248665,0.00019997,2]
[330913613,1719940238116,-3166.04903559,0.00019997,2]
[330913614,1719940238137,-638.89389986,0.00019997,2]
[330913615,1719940238149,-27389.60576193,0.00019997,2]
[330913616,1719940238159,-884.96052384,0.00019997,2]
[330913617,1719940238168,-10458.20836901,0.00019997,2]
[330913618,1719940238178,-24643.95852302,0.00019997,2]
[330913619,1719940238187,-590.14181459,0.00019997,2]
[330913620,1719940238197,-3000.0,0.00019997,2]
[330913621,1719940238207,-3782.15685909,0.0002,2]
[330913622,1719940238218,-2388.94041669,0.0002,2]
[330913623,1719940238240,-4530.15431368,0.0002,2]
[330913624,1719940238250,-7200.0,0.0002,5]
[330913625,1719940238259,-170.37138,0.0002,2]
[330913626,1719940238269,-400.0,0.00020162,2]
[330913627,1719940238279,-171.44,0.00020219,2]
[330913628,1719940238289,-852.16871073,0.0002023,2]
[330913629,1719940238299,-154.27332676,0.00020243,2]
[330913630,1719940238309,-152.52853177,0.00020305,2]
[330913631,1719940238319,-152.52853177,0.00020311,2]
[330913632,1719940238329,-154.27332676,0.00020398,2]
[330913633,1719940238339,-24452.24406919,0.0002045,2]
[330913634,1719940238351,-20846.88647575,0.0002045,2]
[330913646,1719940239983,-434.48,0.0002045,2]
[330913647,1719940239996,-664.23950995,0.0002045,2]
[330913648,1719940240008,-375.745,0.0002045,2]
[330913649,1719940240022,-6787.29724564,0.0002045,2]
[330913650,1719940240035,-301.21,0.0002045,2]
[330913651,1719940240047,-15708.68561564,0.0002045,2]
[330913652,1719940240059,-656.14,0.0002045,2]
[330913653,1719940240071,-3958.71713417,0.0002045,2]
[330913654,1719940240081,-505.78,0.00020485,2]
[330913655,1719940240091,-2889.0,0.000205,3]
[330913656,1719940240101,-153.67666763,0.00020514,2]
[330913657,1719940240111,-500.0,0.00020524,2]
[330913658,1719940240124,-1000.0,0.00020547,3]
[330913659,1719940240133,-852.16871073,0.00020562,2]
[330913660,1719940240143,-154.27332676,0.00020615,2]
[330913661,1719940240153,-600.0,0.00020641,2]
[330913662,1719940240163,-152.74222845,0.00020652,2]
[330913663,1719940240173,-153.69726095,0.00020672,2]
[330913664,1719940240184,-166.66666666,0.0002076,2]
[330913665,1719940240194,-170.37138,0.00020822,2]
[330913666,1719940240204,-240.62,0.00020833,2]
[330913667,1719940240214,-150.08204742,0.0002084,2]
[330913668,1719940240224,-852.16871073,0.00020895,2]
[330913669,1719940240234,-166.71,0.00020931,2]
[330913670,1719940240244,-313.55173484,0.00020983,2]
[330913671,1719940240254,-1001.01518625,0.00021,2]
[330913672,1719940240265,-1413.0,0.00021,2]
[330913673,1719940240275,-1250.0,0.00021,2]
[330913674,1719940240286,-154.27332676,0.00021083,2]
[330913675,1719940240297,-5935.10501487,0.000211,2]
[330913676,1719940240310,-271.46235259,0.000211,2]
[330913677,1719940240330,-385.66261705,0.000211,2]
[330913678,1719940240342,-443.0644103,0.000211,2]
[330913679,1719940240356,-501.7001713,0.000211,2]
[330913680,1719940240368,-1040.80179994,0.000211,2]
[330913681,1719940240381,-27165.02480758,0.000211,2]
[330913682,1719940240392,-853.94,0.00021135,2]
[330913683,1719940240402,-837.58,0.00021135,2]
[330913684,1719940240413,-853.94,0.00021135,2]
[330913685,1719940240424,-853.28,0.00021135,2]
[330913686,1719940240434,-153.69726095,0.00021136,2]
[330913687,1719940240445,-152.74222845,0.00021179,2]
[330913689,1719940240455,-152.52853177,0.00021182,2]
[330913690,1719940240469,-150.08204743,0.00021188,2]
[330913691,1719940240479,-852.16871073,0.00021227,2]
[330913692,1719940240489,-152.74222845,0.00021263,2]
[330913693,1719940240500,-163.90313413,0.00021278,2]
[330913694,1719940240510,-152.74222845,0.00021324,2]
[330913695,1719940240522,-152.52853177,0.00021331,2]
[330913697,1719940240533,-151.14566898,0.00021364,2]
[330913699,1719940240543,-150.0,0.00021378,2]
[330913701,1719940240553,-150.0,0.00021378,2]
[330913703,1719940240564,-150.0,0.00021378,2]
[330913706,1719940240574,-150.0,0.00021378,2]
[330913710,1719940240585,-150.0,0.00021378,2]
[330913714,1719940240595,-150.0,0.00021378,2]
[330913718,1719940240606,-150.0,0.00021378,2]
[330913723,1719940240616,-1274.0,0.00021378,2]
[330913727,1719940240627,-360.0,0.00021378,2]
[330913730,1719940240637,-1830.0,0.00021378,2]
[330913733,1719940240647,-1657.0,0.00021378,2]
[330913736,1719940240657,-448.0,0.00021378,2]
[330913739,1719940240666,-618.0,0.00021378,2]
[330913741,1719940240676,-443.0,0.00021378,2]
[330913742,1719940240685,-166.0,0.00021378,2]
[330913743,1719940240695,-813.0,0.00021378,2]
[330913744,1719940240704,-153.554,0.00021378,2]
[330913745,1719940240713,-2416.0,0.00021378,2]
[330913746,1719940240723,-1304.0,0.00021378,2]
[330913747,1719940240734,-1987.0,0.00021378,2]
[330913748,1719940240746,-548.0,0.00021378,2]
[330913749,1719940240757,-3205.0,0.00021378,2]
[330913750,1719940240769,-283.0,0.00021378,2]
[330913751,1719940240779,-1198.0,0.00021378,2]
[330913752,1719940240791,-1663.0,0.00021378,2]
[330913753,1719940240802,-1706.43875962,0.00021378,2]
[330913754,1719940240830,-1861.97277575,0.00021378,2]
[330913755,1719940240850,-1606.58846463,0.00021378,2]
[330913756,1719940240860,-5808.0,0.00021378,2]
[330913757,1719940240870,-291.0,0.00021378,2]
[330913758,1719940240880,-35538.74300583,0.00021378,2]
[330913759,1719940240891,-2366.84226352,0.00021378,2]
[330913760,1719940240902,-315.41473065,0.00021378,2]
[330913761,1719940240912,-1070.0,0.00021378,2]
[330913762,1719940240922,-171.44,0.00021409,2]
[330913763,1719940240932,-151.145669,0.00021413,2]
[330913764,1719940240942,-152.52853177,0.00021421,2]
[330913765,1719940240952,-153.67666763,0.00021475,2]
[330913766,1719940240961,-93.70930024,0.00021508,2]
[330913767,1719940240982,-60.56402652,0.00021508,2]
[330913768,1719940240992,-152.74222845,0.00021519,2]
[330913769,1719940241001,-154.27332676,0.00021527,2]
[330913770,1719940241011,-327.40230081,0.0002156,2]
[330913771,1719940241023,-524.76640992,0.0002156,2]
[330913772,1719940241033,-300.0,0.0002162,2]
[330913773,1719940241043,-154.27332676,0.00021634,2]
[330913774,1719940241053,-349.92,0.00021644,2]
[330913775,1719940241063,-384.84,0.00021644,2]
[330913776,1719940241072,-158.11,0.00021644,2]
[330913777,1719940241082,-170.37138,0.00021644,2]
[330913778,1719940241091,-151.04,0.0002169,2]
[330913779,1719940241101,-2000.0,0.00021699,2]
[330913780,1719940241110,-300.0,0.000217,7]
[330913781,1719940241120,-2347.12235106,0.000217,2]
[330913782,1719940241132,-281.186742,0.000217,2]
[330913783,1719940241143,-40367.44738181,0.000217,2]
[330913784,1719940241155,-3762.92114843,0.000217,2]
[330913785,1719940241166,-8011.06226156,0.000217,2]
[330913786,1719940241177,-5244.7745086,0.000217,2]
[330913787,1719940241189,-8864.50863,0.000217,2]
[330913788,1719940241216,-288.5,0.000217,2]
[330913789,1719940241227,-461.74,0.000217,2]
[330913790,1719940241238,-314.33454932,0.000217,2]
[330913791,1719940241250,-2450.7090504,0.000217,2]
[330913798,1719940242882,-814.55264413,0.000217,2]
[330913801,1719940242894,-28531.69279062,0.000217,2]
[330913803,1719940242905,-7292.85290267,0.000217,2]
[330913805,1719940242972,-3067.36856786,0.000217,2]
[330913806,1719940243055,-146775.62176488,0.000217,2]
[330913807,1719940243065,-181.35178771,0.00021736,2]
[330913808,1719940243075,-154.27332676,0.00021747,2]
[330913809,1719940243084,-153.69726095,0.00021756,2]
[330913810,1719940243094,-600.0,0.000218,7]
[330913811,1719940243104,-153.67666763,0.00021818,2]
[330913812,1719940243113,-669.0,0.00021825,2]
[330913813,1719940243123,-154.27332676,0.0002185,2]
[330913814,1719940243132,-852.16871073,0.00021892,2]
[330913815,1719940243142,-900.0,0.000219,7]
[330913816,1719940243152,-301.42,0.000219,2]
[330913817,1719940243161,-500.0,0.00021917,2]
[330913818,1719940243170,-605.64,0.00021918,2]
[330913819,1719940243180,-154.39,0.00021918,2]
[330913820,1719940243189,-150.42,0.00021918,2]
[330913821,1719940243199,-313.55173483,0.00021937,2]
[330913822,1719940243208,-3172.32459788,0.0002195,2]
[330913823,1719940243218,-3172.32459788,0.0002195,2]
[330913824,1719940243228,-2017.58797249,0.00021955,2]
[330913825,1719940243237,-271.43372364,0.0002197,2]
[330913826,1719940243248,-157.58773495,0.00021989,2]
[330913827,1719940243257,-1068.30781785,0.00022,2]
[330913828,1719940243270,-153.67666763,0.00022002,2]
[330913829,1719940243279,-163.90313411,0.00022039,2]
[330913830,1719940243289,-669.0,0.0002205,2]
[330913831,1719940243298,-188.19770557,0.00022053,2]
[330913832,1719940243308,-500.0,0.00022198,2]
[330913833,1719940243318,-1300.0,0.000222,8]
[330913834,1719940243328,-500.0,0.00022206,2]
[330913835,1719940243337,-500.0,0.00022215,2]
[330913836,1719940243349,-500.0,0.00022224,2]
[330913837,1719940243358,-852.16871073,0.00022225,2]
[330913838,1719940243368,-500.0,0.00022233,2]
[330913839,1719940243378,-154.27332676,0.00022274,2]
[330913840,1719940243389,-669.0,0.00022275,2]
[330913841,1719940243399,-151.74222812,0.0002228,2]
[330913842,1719940243409,-1600.0,0.000223,8]
[330913843,1719940243419,-154.27332676,0.00022305,2]
[330913844,1719940243429,-446.8799,0.00022365,2]
[330913845,1719940243438,-7500.0,0.00022365,2]
[330913846,1719940243447,-4923.44335969,0.00022365,2]
[330913847,1719940243456,-1000.12,0.000224,2]
[330913848,1719940243466,-300.0,0.000224,8]
[330913849,1719940243475,-400.0,0.00022403,2]
[330913850,1719940243484,-4923.44335968,0.00022413,2]
[330913851,1719940243493,-152.52853177,0.00022414,2]
[330913852,1719940243502,-164.98217216,0.00022439,2]
[330913853,1719940243512,-2659.77321096,0.00022447,5]
[330913854,1719940243522,-154.27332676,0.00022451,2]
[330913856,1719940243531,-4923.44335968,0.0002246,2]
[330913858,1719940243540,-500.0,0.00022464,2]
[330913860,1719940243549,-500.0,0.00022465,4]
[330913862,1719940243559,-500.0,0.00022465,4]
[330913864,1719940243568,-500.0,0.00022465,4]
[330913866,1719940243577,-500.0,0.00022465,4]
[330913867,1719940243586,-500.0,0.00022465,4]
[330913868,1719940243596,-500.0,0.00022465,4]
[330913869,1719940243604,-500.0,0.00022465,4]
[330913870,1719940243613,-500.0,0.00022465,4]
[330913871,1719940243622,-500.0,0.00022465,4]
[330913872,1719940243631,-500.0,0.00022465,4]
[330913873,1719940243641,-188.44,0.00022465,4]
[330913874,1719940243650,-500.0,0.00022465,4]
[330913875,1719940243660,-500.0,0.00022465,4]
[330913876,1719940243669,-500.0,0.00022465,4]
[330913877,1719940243678,-500.0,0.00022465,4]
[330913878,1719940243687,-500.0,0.00022465,4]
[330913879,1719940243697,-500.0,0.00022465,4]
[330913880,1719940243706,-500.0,0.00022465,4]
[330913881,1719940243715,-500.0,0.00022465,4]
[330913882,1719940243725,-500.0,0.00022465,4]
[330913883,1719940243734,-500.0,0.00022465,4]
[330913884,1719940243744,-500.0,0.00022465,4]
[330913885,1719940243758,-500.0,0.00022465,4]
[330913886,1719940243769,-500.0,0.00022465,4]
[330913887,1719940243778,-403.41,0.00022465,4]
[330913888,1719940243789,-500.0,0.00022465,4]
[330913889,1719940243799,-500.0,0.00022465,4]
[330913890,1719940243809,-500.0,0.00022465,4]
[330913891,1719940243819,-500.0,0.00022465,4]
[330913892,1719940243831,-500.0,0.00022465,4]
[330913893,1719940244029,-500.0,0.00022465,4]
[330913894,1719940244039,-500.0,0.00022465,4]
[330913895,1719940244048,-586.26,0.00022465,4]
[330913896,1719940244057,-500.0,0.00022465,4]
[330913897,1719940244066,-500.0,0.00022465,4]
[330913898,1719940244075,-500.0,0.00022465,4]
[330913899,1719940244084,-500.0,0.00022465,4]
[330913900,1719940244093,-500.77816724,0.00022465,4]
[330913901,1719940244103,-500.0,0.00022465,4]
[330913902,1719940244112,-510.73,0.00022465,4]
[330913903,1719940244122,-500.0,0.00022465,4]
[330913904,1719940244132,-500.0,0.00022465,4]
[330913905,1719940244141,-500.0,0.00022465,4]
[330913906,1719940244151,-500.0,0.00022465,4]
[330913907,1719940244161,-500.0,0.00022465,4]
[330913908,1719940244170,-500.0,0.00022465,4]
[330913909,1719940244179,-500.0,0.00022465,4]
[330913910,1719940244188,-500.0,0.00022465,4]
[330913911,1719940244198,-500.0,0.00022465,4]
[330913912,1719940244207,-222.27493977,0.00022465,4]
[330913913,1719940244216,-500.0,0.00022465,4]
[330913914,1719940244225,-500.0,0.00022465,4]
[330913915,1719940244235,-500.0,0.00022465,4]
[330913916,1719940244244,-500.0,0.00022465,4]
[330913917,1719940244253,-169.98,0.00022465,4]
[330913918,1719940244263,-500.0,0.00022465,4]
[330913919,1719940244276,-500.0,0.00022465,4]
[330913920,1719940244285,-576.69,0.00022465,4]
[330913921,1719940244295,-500.0,0.00022465,4]
[330913922,1719940244304,-500.0,0.00022465,4]
[330913923,1719940244314,-500.0,0.00022465,4]
[330913924,1719940244323,-500.0,0.00022465,4]
[330913925,1719940244332,-500.0,0.00022465,4]
[330913926,1719940244342,-500.0,0.00022465,4]
[330913927,1719940244351,-500.0,0.00022465,4]
[330913928,1719940244360,-500.0,0.00022465,4]
[330913929,1719940244370,-500.0,0.00022465,4]
[330913930,1719940244379,-415.99,0.00022465,4]
[330913931,1719940244388,-500.0,0.00022465,4]
[330913932,1719940244397,-500.0,0.00022465,4]
[330913933,1719940244406,-500.0,0.00022465,4]
[330913934,1719940244415,-500.0,0.00022465,4]
[330913935,1719940244424,-500.0,0.00022465,4]
[330913936,1719940244433,-500.0,0.00022465,4]
[330913937,1719940244443,-500.0,0.00022465,4]
[330913938,1719940244452,-500.0,0.00022465,4]
[330913939,1719940244461,-251.76,0.00022465,4]
[330913940,1719940244471,-500.0,0.00022465,4]
[330913941,1719940244480,-500.0,0.00022465,4]
[330913942,1719940244489,-500.0,0.00022465,4]
[330913943,1719940244498,-281.84,0.00022465,4]
[330913944,1719940244508,-500.0,0.00022465,4]
[330913945,1719940244519,-500.0,0.00022465,4]
[330913946,1719940244528,-500.0,0.00022465,4]
[330913947,1719940244537,-500.0,0.00022465,4]
[330913948,1719940244547,-500.0,0.00022465,4]
[330913949,1719940244557,-500.0,0.00022465,4]
[330913950,1719940244566,-500.0,0.00022465,4]
[330913951,1719940244575,-500.0,0.00022465,4]
[330913952,1719940244585,-500.0,0.00022465,4]
[330913953,1719940244594,-289.34,0.00022465,4]
[330913954,1719940244603,-500.0,0.00022465,4]
[330913955,1719940244613,-423.96,0.00022465,4]
[330913956,1719940244622,-500.0,0.00022465,4]
[330913957,1719940244631,-500.0,0.00022465,4]
[330913958,1719940244640,-500.0,0.00022465,4]
[330913959,1719940244649,-366.15,0.00022465,4]
[330913960,1719940244659,-500.0,0.00022465,4]
[330913961,1719940244669,-500.0,0.00022465,4]
[330913962,1719940244678,-235.85,0.00022465,4]
[330913963,1719940244688,-500.0,0.00022465,4]
[330913964,1719940244697,-500.0,0.00022465,4]
[330913965,1719940244707,-500.0,0.00022465,4]
[330913966,1719940244717,-500.0,0.00022465,4]
[330913967,1719940244726,-500.0,0.00022465,4]
[330913968,1719940244736,-500.0,0.00022465,4]
[330913969,1719940244746,-500.0,0.00022465,4]
[330913970,1719940244759,-332.2,0.00022465,4]
[330913971,1719940244771,-437.79,0.00022465,4]
[330913972,1719940244780,-500.0,0.00022465,4]
[330913973,1719940244791,-500.0,0.00022465,4]
[330913974,1719940244800,-500.0,0.00022465,4]
[330913975,1719940244810,-500.0,0.00022465,4]
[330913976,1719940244820,-500.0,0.00022465,4]
[330913977,1719940244832,-500.0,0.00022465,4]
[330913978,1719940244842,-365.2,0.00022465,4]
[330913979,1719940244851,-500.0,0.00022465,4]
[330913980,1719940244861,-500.0,0.00022465,4]
[330913981,1719940244870,-500.0,0.00022465,4]
[330913982,1719940244880,-500.0,0.00022465,4]
[330913983,1719940244889,-500.0,0.00022465,4]
[330913984,1719940244899,-500.0,0.00022465,4]
[330913985,1719940244908,-500.0,0.00022465,4]
[330913986,1719940244918,-500.0,0.00022465,4]
[330913987,1719940244928,-166.12,0.00022465,4]
[330913988,1719940244937,-500.0,0.00022465,4]
[330913989,1719940244947,-500.0,0.00022465,4]
[330913990,1719940244956,-600.91,0.00022465,4]
[330913991,1719940244965,-500.0,0.00022465,4]
[330913992,1719940244974,-500.0,0.00022465,4]
[330913993,1719940244984,-366.17,0.00022465,4]
[330913994,1719940244993,-500.0,0.00022465,4]
[330913995,1719940245002,-500.0,0.00022465,4]
[330913996,1719940245011,-500.0,0.00022465,4]
[330913997,1719940245021,-521.85,0.00022465,4]
[330913998,1719940245031,-500.0,0.00022465,4]
[330913999,1719940245041,-309.62,0.00022465,4]
[330914000,1719940245050,-500.0,0.00022465,4]
[330914001,1719940245060,-500.0,0.00022465,4]
[330914002,1719940245069,-500.0,0.00022465,4]
[330914003,1719940245079,-500.0,0.00022465,4]
[330914004,1719940245089,-500.0,0.00022465,4]
[330914005,1719940245098,-500.0,0.00022465,4]
[330914006,1719940245108,-500.0,0.00022465,4]
[330914007,1719940245118,-500.0,0.00022465,4]
[330914008,1719940245127,-500.0,0.00022465,4]
[330914009,1719940245137,-500.0,0.00022465,4]
[330914010,1719940245147,-567.5,0.00022465,4]
[330914011,1719940245157,-500.0,0.00022465,4]
[330914012,1719940245166,-500.0,0.00022465,4]
[330914013,1719940245175,-500.0,0.00022465,4]
[330914014,1719940245185,-500.0,0.00022465,4]
[330914015,1719940245194,-500.0,0.00022465,4]
[330914016,1719940245204,-500.0,0.00022465,4]
[330914017,1719940245214,-500.0,0.00022465,4]
[330914018,1719940245224,-500.0,0.00022465,4]
[330914019,1719940245233,-645.09,0.00022465,4]
[330914020,1719940245243,-500.0,0.00022465,4]
[330914021,1719940245253,-500.0,0.00022465,4]
[330914022,1719940245263,-500.0,0.00022465,4]
[330914023,1719940245275,-500.0,0.00022465,4]
[330914024,1719940245285,-500.0,0.00022465,4]
[330914025,1719940245294,-236.63,0.00022465,4]
[330914026,1719940245308,-500.0,0.00022465,4]
[330914027,1719940245319,-500.0,0.00022465,4]
[330914028,1719940245328,-500.0,0.00022465,4]
[330914029,1719940245337,-500.0,0.00022465,4]
[330914030,1719940245347,-500.0,0.00022465,4]